[Event "Titled Tuesday Blitz November 15 Early 2022"]
[White "Sargsyan, Anna M."]
[Black "Ter-Sahakyan, Samvel"]
[WhiteFideId "13308130"]
[BlackFideId "13302531"]
[WhiteElo "2284"]
[BlackElo "2584"]
[Result "0-1"]
[Round "07"]
[TimeControl "180+1"]
[Date "2022.11.16"]
[WhiteClock "0:00:05"]
[BlackClock "0:00:05"]

1. e4 {[%clk 0:02:54]}  c6 {[%clk 0:03:00]} 2. d4 {[%clk 0:02:51]}  d5 {[%clk 0:03:00]} 3. exd5 {[%clk 0:02:52]}  cxd5 {[%clk 0:03:00]} 4. Bd3 {[%clk 0:02:51]}  Nf6 {[%clk 0:02:58]} 5. c3 {[%clk 0:02:51]}  Bg4 {[%clk 0:02:58]} 6. f3 {[%clk 0:02:50]}  Bh5 {[%clk 0:02:55]} 7. Ne2 {[%clk 0:02:50]}  Bg6 {[%clk 0:02:53]} 8. O-O {[%clk 0:02:48]}  e6 {[%clk 0:02:52]} 9. Nf4 {[%clk 0:02:48]}  Bd6 {[%clk 0:02:51]} 10. Re1 {[%clk 0:02:46]}  Qc7 {[%clk 0:02:46]} 11. g3 {[%clk 0:02:35]}  Nc6 {[%clk 0:02:42]} 12. Kg2 {[%clk 0:02:32]}  Bxd3 {[%clk 0:02:39]} 13. Qxd3 {[%clk 0:02:30]}  O-O {[%clk 0:02:39]} 14. a4 {[%clk 0:02:26]}  Rfe8 {[%clk 0:02:39]} 15. Na3 {[%clk 0:02:26]}  a6 {[%clk 0:02:39]} 16. Nc2 {[%clk 0:02:20]}  Rad8 {[%clk 0:02:37]} 17. Ne2 {[%clk 0:02:00]}  e5 {[%clk 0:02:35]} 18. Bg5 {[%clk 0:02:01]}  Nd7 {[%clk 0:02:24]} 19. Bxd8 {[%clk 0:01:59]}  Rxd8 {[%clk 0:02:22]} 20. dxe5 {[%clk 0:01:43]}  Ncxe5 {[%clk 0:02:10]} 21. Qxd5 {[%clk 0:01:37]}  Nf6 {[%clk 0:02:10]} 22. Qb3 {[%clk 0:01:31]}  Nxf3 {[%clk 0:02:04]} 23. Kxf3 {[%clk 0:01:07]}  Qc6+ {[%clk 0:02:04]} 24. Kf2 {[%clk 0:01:07]}  Ne4+ {[%clk 0:01:07]} 25. Kg1 {[%clk 0:00:54]}  Ng5 {[%clk 0:01:04]} 26. Ned4 {[%clk 0:00:36]}  Bc5 {[%clk 0:00:39]} 27. Re3 {[%clk 0:00:12]}  Nh3+ {[%clk 0:00:39]} 28. Kf1 {[%clk 0:00:12]}  Qh1+ {[%clk 0:00:39]} 29. Ke2 {[%clk 0:00:13]}  Qxh2+ {[%clk 0:00:23]} 30. Kd1 {[%clk 0:00:07]}  Nf2+ {[%clk 0:00:22]} 31. Kc1 {[%clk 0:00:06]}  Ng4 {[%clk 0:00:12]} 32. Re2 {[%clk 0:00:06]}  Qg1+ {[%clk 0:00:09]} 33. Re1 {[%clk 0:00:05]}  Qxg3 {[%clk 0:00:10]} 34. Qxb7 {[%clk 0:00:04]}  Bxd4 {[%clk 0:00:09]} 35. cxd4 {[%clk 0:00:05]}  h5 {[%clk 0:00:07]} 36. Qe4 {[%clk 0:00:05]}  Rc8 {[%clk 0:00:07]} 37. Kb1 {[%clk 0:00:04]}  Nf6 {[%clk 0:00:07]} 38. Qe3 {[%clk 0:00:03]}  Qg4 {[%clk 0:00:07]} 39. Ra3 {[%clk 0:00:04]}  Nd5 {[%clk 0:00:06]} 40. Qg3 {[%clk 0:00:04]}  Qf5 {[%clk 0:00:06]} 41. Qd3 {[%clk 0:00:03]}  Qf2 {[%clk 0:00:05]} 42. Re2 {[%clk 0:00:02]}  Qf1+ {[%clk 0:00:05]} 43. Re1 {[%clk 0:00:02]}  Qf6 {[%clk 0:00:04]} 44. Qe4 {[%clk 0:00:02]}  Nf4 {[%clk 0:00:04]} 45. Qe5 {[%clk 0:00:02]}  Qg6 {[%clk 0:00:04]} 46. Qe4 {[%clk 0:00:02]}  Qf6 {[%clk 0:00:04]} 47. Rc3 {[%clk 0:00:02]}  Rd8 {[%clk 0:00:03]} 48. Qe5 {[%clk 0:00:03]}  Qxe5 {[%clk 0:00:01]} 49. dxe5 {[%clk 0:00:03]}  g5 {[%clk 0:00:02]} 50. e6 {[%clk 0:00:03]}  fxe6 {[%clk 0:00:02]} 51. Ne3 {[%clk 0:00:03]}  Kf7 {[%clk 0:00:02]} 52. Nc4 {[%clk 0:00:04]}  Kf6 {[%clk 0:00:02]} 53. Ne5 {[%clk 0:00:04]}  Rd5 {[%clk 0:00:02]} 54. Nc6 {[%clk 0:00:03]}  h4 {[%clk 0:00:03]} 55. Rce3 {[%clk 0:00:04]}  h3 {[%clk 0:00:03]} 56. Ne5 {[%clk 0:00:03]}  Rc5 {[%clk 0:00:03]} 57. Ng4+ {[%clk 0:00:03]}  Kf5 {[%clk 0:00:03]} 58. Nf2 {[%clk 0:00:03]}  Rd5 {[%clk 0:00:03]} 59. Nxh3 {[%clk 0:00:03]}  e5 {[%clk 0:00:03]} 60. Ng1 {[%clk 0:00:02]}  g4 {[%clk 0:00:02]} 61. Ne2 {[%clk 0:00:03]}  Ng2 {[%clk 0:00:02]} 62. Ng3+ {[%clk 0:00:03]}  Kf4 {[%clk 0:00:02]} 63. Nh5+ {[%clk 0:00:02]}  Kg5 {[%clk 0:00:02]} 64. Ng3 {[%clk 0:00:02]}  Kf4 {[%clk 0:00:02]} 65. Re4+ {[%clk 0:00:02]}  Kxg3 {[%clk 0:00:02]} 66. Rc1 {[%clk 0:00:02]}  Nf4 {[%clk 0:00:02]} 67. Rc3+ {[%clk 0:00:02]}  Kf2 {[%clk 0:00:02]} 68. Rce3 {[%clk 0:00:02]}  g3 {[%clk 0:00:02]} 69. Rxe5 {[%clk 0:00:03]}  Rxe5 {[%clk 0:00:02]} 70. Rxe5 {[%clk 0:00:03]}  g2 {[%clk 0:00:03]} 71. Rg5 {[%clk 0:00:04]}  g1=Q+ {[%clk 0:00:03]} 72. Rxg1 {[%clk 0:00:04]}  Kxg1 {[%clk 0:00:04]} 73. b4 {[%clk 0:00:05]}  Nd5 {[%clk 0:00:03]} 74. b5 {[%clk 0:00:05]}  a5 {[%clk 0:00:04]} 75. Kc2 {[%clk 0:00:06]}  Nb6 {[%clk 0:00:04]} 76. Kc3 {[%clk 0:00:05]}  Kf2 {[%clk 0:00:04]} 77. Kd4 {[%clk 0:00:06]}  Nxa4 {[%clk 0:00:04]} 78. Kc4 {[%clk 0:00:05]}  Ke3 {[%clk 0:00:04]} 79. b6 {[%clk 0:00:04]}  Nxb6+ {[%clk 0:00:04]} 80. Kb5 {[%clk 0:00:05]}  a4 {[%clk 0:00:05]} 0-1


[Site "https://www.chess.com"]

[Event "Titled Tuesday Blitz November 15 Early 2022"]
[White "Seifert, Henryk"]
[Black "Ravot, Sylvain"]
[WhiteFideId "1100963"]
[BlackFideId "627763"]
[WhiteElo "2120"]
[BlackElo "2195"]
[Result "1-0"]
[Round "07"]
[TimeControl "180+1"]
[Date "2022.11.16"]
[WhiteClock "0:00:28"]
[BlackClock "0:00:04"]

1. e4 {[%clk 0:02:57]}  c5 {[%clk 0:02:58]} 2. Nf3 {[%clk 0:02:56]}  g6 {[%clk 0:02:55]} 3. c3 {[%clk 0:02:56]}  d5 {[%clk 0:02:52]} 4. exd5 {[%clk 0:02:55]}  Qxd5 {[%clk 0:02:53]} 5. d4 {[%clk 0:02:54]}  Bg7 {[%clk 0:02:50]} 6. Be2 {[%clk 0:02:53]}  Nc6 {[%clk 0:02:50]} 7. Na3 {[%clk 0:02:52]}  Nf6 {[%clk 0:02:47]} 8. Nb5 {[%clk 0:02:49]}  Qd8 {[%clk 0:02:45]} 9. dxc5 {[%clk 0:02:46]}  Ne4 {[%clk 0:02:37]} 10. Qxd8+ {[%clk 0:02:42]}  Kxd8 {[%clk 0:02:31]} 11. Be3 {[%clk 0:02:41]}  a6 {[%clk 0:02:27]} 12. Rd1+ {[%clk 0:02:38]}  Bd7 {[%clk 0:02:28]} 13. Nbd4 {[%clk 0:02:38]}  Kc8 {[%clk 0:02:18]} 14. Nxc6 {[%clk 0:02:34]}  Bxc6 {[%clk 0:02:19]} 15. Nd4 {[%clk 0:02:29]}  Ba4 {[%clk 0:02:16]} 16. Rd3 {[%clk 0:02:22]}  Nxc5 {[%clk 0:02:11]} 17. Rd2 {[%clk 0:02:18]}  Ne4 {[%clk 0:02:11]} 18. Rd3 {[%clk 0:02:18]}  e5 {[%clk 0:02:01]} 19. Nb3 {[%clk 0:01:54]}  Bb5 {[%clk 0:01:33]} 20. Rd1 {[%clk 0:01:54]}  Bxe2 {[%clk 0:01:31]} 21. Kxe2 {[%clk 0:01:55]}  Kc7 {[%clk 0:01:27]} 22. f3 {[%clk 0:01:52]}  Nd6 {[%clk 0:01:18]} 23. Nc5 {[%clk 0:01:38]}  Kc6 {[%clk 0:00:52]} 24. b3 {[%clk 0:01:31]}  Rhd8 {[%clk 0:00:40]} 25. g4 {[%clk 0:01:15]}  Nb5 {[%clk 0:00:35]} 26. Rc1 {[%clk 0:01:05]}  Bf8 {[%clk 0:00:15]} 27. Ne4 {[%clk 0:01:01]}  Ba3 {[%clk 0:00:08]} 28. Rc2 {[%clk 0:00:58]}  Be7 {[%clk 0:00:09]} 29. a4 {[%clk 0:00:57]}  Nc7 {[%clk 0:00:08]} 30. b4 {[%clk 0:00:47]}  Ne6 {[%clk 0:00:08]} 31. Rb1 {[%clk 0:00:43]}  f5 {[%clk 0:00:08]} 32. gxf5 {[%clk 0:00:41]}  gxf5 {[%clk 0:00:09]} 33. Ng3 {[%clk 0:00:42]}  f4 {[%clk 0:00:08]} 34. Nf5 {[%clk 0:00:42]}  Bf6 {[%clk 0:00:06]} 35. Bf2 {[%clk 0:00:40]}  Rg8 {[%clk 0:00:05]} 36. Rg1 {[%clk 0:00:36]}  Rxg1 {[%clk 0:00:05]} 37. Bxg1 {[%clk 0:00:35]}  Rg8 {[%clk 0:00:06]} 38. Bf2 {[%clk 0:00:34]}  Rg2 {[%clk 0:00:06]} 39. Rd2 {[%clk 0:00:31]}  Kc7 {[%clk 0:00:04]} 40. Rd6 {[%clk 0:00:28]} 1-0


[Site "https://www.chess.com"]

[Event "Titled Tuesday Blitz November 15 Early 2022"]
[White "Sharifov, Mekhriddin"]
[Black "Wirig, Anthony"]
[WhiteFideId "14701545"]
[BlackFideId "615013"]
[WhiteElo "2109"]
[BlackElo "2487"]
[Result "1-0"]
[Round "07"]
[TimeControl "180+1"]
[Date "2022.11.15"]
[WhiteClock "0:00:53"]
[BlackClock "0:00:08"]

1. e4 {[%clk 0:03:00]}  c5 {[%clk 0:02:59]} 2. Nf3 {[%clk 0:03:01]}  e6 {[%clk 0:03:00]} 3. d4 {[%clk 0:03:01]}  cxd4 {[%clk 0:03:00]} 4. Nxd4 {[%clk 0:03:02]}  Nf6 {[%clk 0:03:00]} 5. Nc3 {[%clk 0:03:03]}  Nc6 {[%clk 0:03:01]} 6. Ndb5 {[%clk 0:03:02]}  Bc5 {[%clk 0:03:01]} 7. Nd6+ {[%clk 0:03:00]}  Ke7 {[%clk 0:03:00]} 8. Bf4 {[%clk 0:03:00]}  e5 {[%clk 0:03:00]} 9. Nf5+ {[%clk 0:03:01]}  Kf8 {[%clk 0:03:00]} 10. Be3 {[%clk 0:03:00]}  Bb4 {[%clk 0:02:57]} 11. Bc4 {[%clk 0:02:04]}  d5 {[%clk 0:02:44]} 12. Bxd5 {[%clk 0:01:58]}  Bxf5 {[%clk 0:02:19]} 13. Bxc6 {[%clk 0:01:57]}  Bxe4 {[%clk 0:02:01]} 14. Bxe4 {[%clk 0:01:44]}  Nxe4 {[%clk 0:01:54]} 15. O-O {[%clk 0:01:28]}  Nxc3 {[%clk 0:01:17]} 16. bxc3 {[%clk 0:01:29]}  Qxd1 {[%clk 0:01:00]} 17. Raxd1 {[%clk 0:01:29]}  Bxc3 {[%clk 0:00:58]} 18. Rd7 {[%clk 0:01:28]}  h6 {[%clk 0:00:42]} 19. Rfd1 {[%clk 0:01:19]}  b6 {[%clk 0:00:21]} 20. Rb7 {[%clk 0:01:14]}  Kg8 {[%clk 0:00:17]} 21. Rdd7 {[%clk 0:01:13]}  Kh7 {[%clk 0:00:16]} 22. Rxf7 {[%clk 0:01:09]}  e4 {[%clk 0:00:16]} 23. Rxa7 {[%clk 0:01:07]}  Rxa7 {[%clk 0:00:16]} 24. Rxa7 {[%clk 0:01:08]}  b5 {[%clk 0:00:17]} 25. a4 {[%clk 0:01:03]}  bxa4 {[%clk 0:00:16]} 26. Rxa4 {[%clk 0:01:04]}  Rb8 {[%clk 0:00:15]} 27. g3 {[%clk 0:01:03]}  Rb4 {[%clk 0:00:12]} 28. Rxb4 {[%clk 0:01:03]}  Bxb4 {[%clk 0:00:13]} 29. c4 {[%clk 0:01:01]}  Kg6 {[%clk 0:00:12]} 30. Bd4 {[%clk 0:01:00]}  Kf7 {[%clk 0:00:11]} 31. Kf1 {[%clk 0:01:01]}  g6 {[%clk 0:00:11]} 32. Ke2 {[%clk 0:01:01]}  Ke6 {[%clk 0:00:11]} 33. Ke3 {[%clk 0:01:01]}  Kf5 {[%clk 0:00:11]} 34. h3 {[%clk 0:01:01]}  h5 {[%clk 0:00:11]} 35. c5 {[%clk 0:00:59]}  Ba5 {[%clk 0:00:11]} 36. c6 {[%clk 0:00:56]}  Bc7 {[%clk 0:00:11]} 37. g4+ {[%clk 0:00:52]}  hxg4 {[%clk 0:00:12]} 38. hxg4+ {[%clk 0:00:53]}  Kxg4 {[%clk 0:00:13]} 39. Kxe4 {[%clk 0:00:54]}  Kh3 {[%clk 0:00:08]} 40. Be5 {[%clk 0:00:53]} 1-0


[Site "https://www.chess.com"]

[Event "Titled Tuesday Blitz November 15 Early 2022"]
[White "Smietanska, Wiktoria"]
[Black "Santos Flores, Alberto"]
[WhiteFideId "21869359"]
[BlackFideId "3601234"]
[WhiteElo "1695"]
[BlackElo "2235"]
[Result "0-1"]
[Round "07"]
[TimeControl "180+1"]
[Date "2022.11.16"]
[WhiteClock "0:00:02"]
[BlackClock "0:00:44"]

1. c4 {[%clk 0:03:00]}  c5 {[%clk 0:02:57]} 2. Nf3 {[%clk 0:02:58]}  g6 {[%clk 0:02:57]} 3. Nc3 {[%clk 0:02:58]}  Bg7 {[%clk 0:02:57]} 4. d4 {[%clk 0:02:56]}  cxd4 {[%clk 0:02:57]} 5. Nxd4 {[%clk 0:02:57]}  Nf6 {[%clk 0:02:55]} 6. e4 {[%clk 0:02:55]}  Nc6 {[%clk 0:02:54]} 7. Nc2 {[%clk 0:02:52]}  O-O {[%clk 0:02:54]} 8. Be2 {[%clk 0:02:51]}  d6 {[%clk 0:02:53]} 9. O-O {[%clk 0:02:50]}  Be6 {[%clk 0:02:53]} 10. Ne3 {[%clk 0:02:47]}  a6 {[%clk 0:02:51]} 11. Ncd5 {[%clk 0:02:43]}  Nxe4 {[%clk 0:02:46]} 12. Bf3 {[%clk 0:02:21]}  Nf6 {[%clk 0:02:45]} 13. Rb1 {[%clk 0:02:08]}  Bxd5 {[%clk 0:02:45]} 14. Nxd5 {[%clk 0:02:04]}  Nxd5 {[%clk 0:02:44]} 15. cxd5 {[%clk 0:02:01]}  Ne5 {[%clk 0:02:44]} 16. Be2 {[%clk 0:01:42]}  Rc8 {[%clk 0:02:43]} 17. b3 {[%clk 0:01:26]}  Qa5 {[%clk 0:02:38]} 18. a3 {[%clk 0:01:08]}  Qc5 {[%clk 0:02:24]} 19. Bb2 {[%clk 0:01:01]}  Qc2 {[%clk 0:02:19]} 20. Qxc2 {[%clk 0:00:41]}  Rxc2 {[%clk 0:02:19]} 21. Bxe5 {[%clk 0:00:31]}  Rxe2 {[%clk 0:02:18]} 22. Bxg7 {[%clk 0:00:30]}  Kxg7 {[%clk 0:02:19]} 23. Rfc1 {[%clk 0:00:26]}  Kf6 {[%clk 0:02:18]} 24. Rc7 {[%clk 0:00:24]}  Rb8 {[%clk 0:02:18]} 25. Rd1 {[%clk 0:00:15]}  a5 {[%clk 0:02:12]} 26. Kf1 {[%clk 0:00:12]}  Ra2 {[%clk 0:02:07]} 27. a4 {[%clk 0:00:11]}  b5 {[%clk 0:02:07]} 28. axb5 {[%clk 0:00:11]}  Rxb5 {[%clk 0:02:08]} 29. Rc3 {[%clk 0:00:10]}  a4 {[%clk 0:01:06]} 30. bxa4 {[%clk 0:00:10]}  Rxa4 {[%clk 0:01:07]} 31. Rf3+ {[%clk 0:00:06]}  Kg7 {[%clk 0:01:07]} 32. Re3 {[%clk 0:00:05]}  Kf8 {[%clk 0:01:07]} 33. Rde1 {[%clk 0:00:04]}  Ra7 {[%clk 0:01:05]} 34. Rd3 {[%clk 0:00:04]}  Raa5 {[%clk 0:01:03]} 35. Rde3 {[%clk 0:00:04]}  Ra7 {[%clk 0:01:00]} 36. Rd3 {[%clk 0:00:04]}  Rb2 {[%clk 0:00:59]} 37. g3 {[%clk 0:00:01]}  f5 {[%clk 0:00:57]} 38. h4 {[%clk 0:00:01]}  Raa2 {[%clk 0:00:54]} 39. Rf3 {[%clk 0:00:02]}  Rd2 {[%clk 0:00:52]} 40. Kg1 {[%clk 0:00:02]}  Rxd5 {[%clk 0:00:52]} 41. Rfe3 {[%clk 0:00:03]}  e5 {[%clk 0:00:51]} 42. f4 {[%clk 0:00:03]}  e4 {[%clk 0:00:50]} 43. Rc3 {[%clk 0:00:03]}  Rc5 {[%clk 0:00:49]} 44. Rb3 {[%clk 0:00:03]}  Rac2 {[%clk 0:00:48]} 45. Rb7 {[%clk 0:00:03]}  Rc7 {[%clk 0:00:48]} 46. Rb8+ {[%clk 0:00:03]}  Rc8 {[%clk 0:00:48]} 47. Rb7 {[%clk 0:00:03]}  R2c7 {[%clk 0:00:48]} 48. Rb6 {[%clk 0:00:04]}  Ke7 {[%clk 0:00:48]} 49. Rd1 {[%clk 0:00:04]}  Rd7 {[%clk 0:00:46]} 50. Kf2 {[%clk 0:00:04]}  d5 {[%clk 0:00:46]} 51. Rd4 {[%clk 0:00:04]}  Rc4 {[%clk 0:00:45]} 52. Rd1 {[%clk 0:00:04]}  d4 {[%clk 0:00:45]} 53. Rb5 {[%clk 0:00:03]}  Rc2+ {[%clk 0:00:44]} 54. Ke1 {[%clk 0:00:02]}  d3 {[%clk 0:00:44]} 0-1


[Site "https://www.chess.com"]

[Event "Titled Tuesday Blitz November 15 Early 2022"]
[White "Tasev, Dejan"]
[Black "Forgacs, Attila Jr."]
[WhiteFideId "936618"]
[BlackFideId "773654"]
[WhiteElo "2256"]
[BlackElo "2168"]
[Result "1-0"]
[Round "07"]
[TimeControl "180+1"]
[Date "2022.11.16"]
[WhiteClock "0:01:14"]
[BlackClock "0:01:37"]

1. e4 {[%clk 0:03:00]}  e5 {[%clk 0:03:00]} 2. Nf3 {[%clk 0:03:00]}  Nc6 {[%clk 0:03:00]} 3. Bc4 {[%clk 0:03:00]}  Nf6 {[%clk 0:03:00]} 4. d3 {[%clk 0:02:59]}  h6 {[%clk 0:03:00]} 5. Nc3 {[%clk 0:02:58]}  d6 {[%clk 0:03:01]} 6. Bb3 {[%clk 0:02:58]}  g5 {[%clk 0:03:01]} 7. Be3 {[%clk 0:02:55]}  Bg7 {[%clk 0:03:02]} 8. Qd2 {[%clk 0:02:55]}  O-O {[%clk 0:03:02]} 9. h4 {[%clk 0:02:52]}  g4 {[%clk 0:03:02]} 10. Bxh6 {[%clk 0:02:47]}  gxf3 {[%clk 0:02:47]} 11. gxf3 {[%clk 0:02:14]}  Ne8 {[%clk 0:02:23]} 12. O-O-O {[%clk 0:01:57]}  Nd4 {[%clk 0:02:14]} 13. Qe3 {[%clk 0:01:39]}  Nxb3+ {[%clk 0:02:12]} 14. axb3 {[%clk 0:01:39]}  Be6 {[%clk 0:02:13]} 15. Rdg1 {[%clk 0:01:37]}  Qf6 {[%clk 0:02:10]} 16. Bg5 {[%clk 0:01:29]}  Qg6 {[%clk 0:02:00]} 17. h5 {[%clk 0:01:26]}  Qh7 {[%clk 0:01:56]} 18. h6 {[%clk 0:01:24]}  Qg6 {[%clk 0:01:37]} 19. hxg7 {[%clk 0:01:20]}  Nxg7 {[%clk 0:01:37]} 20. Bh6 {[%clk 0:01:14]} 1-0


[Site "https://www.chess.com"]

[Event "Titled Tuesday Blitz November 15 Early 2022"]
[White "Thiel, Thomas"]
[Black "Sariego Figueredo, Wilfredo"]
[WhiteFideId "4615964"]
[BlackFideId "3500080"]
[WhiteElo "2242"]
[BlackElo "2309"]
[Result "0-1"]
[Round "07"]
[TimeControl "180+1"]
[Date "2022.11.16"]
[WhiteClock "0:00:01"]
[BlackClock "0:00:19"]

1. e4 {[%clk 0:03:00]}  c5 {[%clk 0:02:59]} 2. Nc3 {[%clk 0:02:59]}  a6 {[%clk 0:02:59]} 3. Nge2 {[%clk 0:02:57]}  b5 {[%clk 0:02:57]} 4. g3 {[%clk 0:02:57]}  Bb7 {[%clk 0:02:57]} 5. Bg2 {[%clk 0:02:57]}  e6 {[%clk 0:02:54]} 6. d4 {[%clk 0:02:57]}  cxd4 {[%clk 0:02:45]} 7. Nxd4 {[%clk 0:02:58]}  Nc6 {[%clk 0:02:43]} 8. O-O {[%clk 0:02:57]}  Bc5 {[%clk 0:02:40]} 9. Nxc6 {[%clk 0:02:50]}  Bxc6 {[%clk 0:02:41]} 10. Qh5 {[%clk 0:02:47]}  Be7 {[%clk 0:02:30]} 11. e5 {[%clk 0:02:43]}  Bxg2 {[%clk 0:02:27]} 12. Kxg2 {[%clk 0:02:44]}  g6 {[%clk 0:02:15]} 13. Qe2 {[%clk 0:02:37]}  Bc5 {[%clk 0:02:05]} 14. Ne4 {[%clk 0:02:33]}  Be7 {[%clk 0:02:04]} 15. Rd1 {[%clk 0:02:28]}  h5 {[%clk 0:01:52]} 16. h4 {[%clk 0:02:24]}  Nh6 {[%clk 0:01:50]} 17. Bg5 {[%clk 0:02:22]}  Bxg5 {[%clk 0:01:46]} 18. hxg5 {[%clk 0:02:22]}  Ng8 {[%clk 0:01:39]} 19. Nd6+ {[%clk 0:02:05]}  Kf8 {[%clk 0:01:38]} 20. f4 {[%clk 0:02:04]}  Ne7 {[%clk 0:01:37]} 21. a4 {[%clk 0:02:02]}  b4 {[%clk 0:01:30]} 22. Ne4 {[%clk 0:01:41]}  Nd5 {[%clk 0:01:20]} 23. Nf6 {[%clk 0:01:39]}  Nxf6 {[%clk 0:01:19]} 24. gxf6 {[%clk 0:01:37]}  h4 {[%clk 0:01:11]} 25. g4 {[%clk 0:01:25]}  d5 {[%clk 0:01:07]} 26. c3 {[%clk 0:01:16]}  bxc3 {[%clk 0:01:04]} 27. bxc3 {[%clk 0:01:17]}  Qa5 {[%clk 0:00:57]} 28. c4 {[%clk 0:01:04]}  Qc3 {[%clk 0:00:49]} 29. Qf3 {[%clk 0:00:31]}  Qxc4 {[%clk 0:00:45]} 30. Rdc1 {[%clk 0:00:16]}  Qb4 {[%clk 0:00:39]} 31. Rcb1 {[%clk 0:00:14]}  Qd2+ {[%clk 0:00:38]} 32. Kh3 {[%clk 0:00:11]}  Rc8 {[%clk 0:00:32]} 33. Rd1 {[%clk 0:00:07]}  Qa5 {[%clk 0:00:27]} 34. Rac1 {[%clk 0:00:04]}  Rb8 {[%clk 0:00:19]} 35. Rb1 {[%clk 0:00:01]}  Rc8 {[%clk 0:00:19]} 0-1


[Site "https://www.chess.com"]

[Event "Titled Tuesday Blitz November 15 Early 2022"]
[White "Tregubov, Pavel V."]
[Black "Fernandez Garcia, Gumersindo"]
[WhiteFideId "4115341"]
[BlackFideId "24516740"]
[WhiteElo "2448"]
[BlackElo "2140"]
[Result "1-0"]
[Round "07"]
[TimeControl "180+1"]
[Date "2022.11.16"]
[WhiteClock "0:00:10"]
[BlackClock "0:00:07"]

1. e4 {[%clk 0:01:50]}  Nf6 {[%clk 0:02:56]} 2. e5 {[%clk 0:01:49]}  Nd5 {[%clk 0:02:57]} 3. d4 {[%clk 0:01:50]}  d6 {[%clk 0:02:56]} 4. Nf3 {[%clk 0:01:50]}  g6 {[%clk 0:02:56]} 5. Bc4 {[%clk 0:01:48]}  Nb6 {[%clk 0:02:55]} 6. Bb3 {[%clk 0:01:47]}  Bg7 {[%clk 0:02:48]} 7. Ng5 {[%clk 0:01:46]}  O-O {[%clk 0:02:48]} 8. Qf3 {[%clk 0:01:45]}  e6 {[%clk 0:02:43]} 9. O-O {[%clk 0:01:42]}  Nc6 {[%clk 0:02:37]} 10. Qh3 {[%clk 0:01:33]}  h6 {[%clk 0:02:37]} 11. Ne4 {[%clk 0:01:33]}  d5 {[%clk 0:02:27]} 12. Nf6+ {[%clk 0:01:28]}  Bxf6 {[%clk 0:02:22]} 13. exf6 {[%clk 0:01:28]}  Qxf6 {[%clk 0:02:20]} 14. Bxh6 {[%clk 0:01:29]}  Re8 {[%clk 0:02:18]} 15. c3 {[%clk 0:01:28]}  e5 {[%clk 0:01:55]} 16. dxe5 {[%clk 0:01:28]}  Nxe5 {[%clk 0:01:52]} 17. Qg3 {[%clk 0:01:28]}  Bf5 {[%clk 0:01:38]} 18. Nd2 {[%clk 0:01:27]}  Ng4 {[%clk 0:01:32]} 19. Bf4 {[%clk 0:01:25]}  c6 {[%clk 0:01:32]} 20. h3 {[%clk 0:01:21]}  Ne5 {[%clk 0:01:31]} 21. Rfe1 {[%clk 0:01:21]}  Nd3 {[%clk 0:01:30]} 22. Rxe8+ {[%clk 0:01:17]}  Rxe8 {[%clk 0:01:31]} 23. Bg5 {[%clk 0:01:16]}  Qe5 {[%clk 0:01:27]} 24. Qxe5 {[%clk 0:01:11]}  Rxe5 {[%clk 0:01:28]} 25. Nf3 {[%clk 0:01:11]}  Re8 {[%clk 0:01:26]} 26. Nd4 {[%clk 0:01:03]}  Nxb2 {[%clk 0:01:26]} 27. Nxf5 {[%clk 0:01:03]}  gxf5 {[%clk 0:01:27]} 28. Rb1 {[%clk 0:01:02]}  N2c4 {[%clk 0:01:24]} 29. Bc2 {[%clk 0:01:01]}  Nd6 {[%clk 0:01:17]} 30. a4 {[%clk 0:00:58]}  Nbc4 {[%clk 0:01:07]} 31. Bf4 {[%clk 0:00:47]}  Kg7 {[%clk 0:01:05]} 32. Bd3 {[%clk 0:00:46]}  Re7 {[%clk 0:01:03]} 33. h4 {[%clk 0:00:41]}  f6 {[%clk 0:01:03]} 34. h5 {[%clk 0:00:41]}  b5 {[%clk 0:00:57]} 35. axb5 {[%clk 0:00:39]}  cxb5 {[%clk 0:00:58]} 36. Ra1 {[%clk 0:00:38]}  Ne5 {[%clk 0:00:53]} 37. Ra6 {[%clk 0:00:28]}  Ndc4 {[%clk 0:00:42]} 38. Bxf5 {[%clk 0:00:27]}  Nf7 {[%clk 0:00:24]} 39. Be6 {[%clk 0:00:20]}  Nce5 {[%clk 0:00:21]} 40. Bxd5 {[%clk 0:00:19]}  Rc7 {[%clk 0:00:18]} 41. Bd2 {[%clk 0:00:12]}  Rd7 {[%clk 0:00:18]} 42. Bxf7 {[%clk 0:00:12]}  Kxf7 {[%clk 0:00:18]} 43. Be3 {[%clk 0:00:12]}  Nc4 {[%clk 0:00:13]} 44. Rxa7 {[%clk 0:00:12]}  Rxa7 {[%clk 0:00:13]} 45. Bxa7 {[%clk 0:00:12]}  Nd2 {[%clk 0:00:13]} 46. Bd4 {[%clk 0:00:12]}  Nb3 {[%clk 0:00:13]} 47. Be3 {[%clk 0:00:11]}  Na5 {[%clk 0:00:13]} 48. Kf1 {[%clk 0:00:11]}  Nc4 {[%clk 0:00:13]} 49. Ke2 {[%clk 0:00:11]}  Ne5 {[%clk 0:00:13]} 50. f3 {[%clk 0:00:11]}  Nd7 {[%clk 0:00:12]} 51. g4 {[%clk 0:00:12]}  Ke6 {[%clk 0:00:13]} 52. Bd4 {[%clk 0:00:12]}  f5 {[%clk 0:00:13]} 53. g5 {[%clk 0:00:11]}  Nf8 {[%clk 0:00:11]} 54. g6 {[%clk 0:00:11]}  Nd7 {[%clk 0:00:07]} 55. h6 {[%clk 0:00:10]} 1-0


[Site "https://www.chess.com"]

[Event "Titled Tuesday Blitz November 15 Early 2022"]
[White "Tymrakiewicz, Rafal"]
[Black "Perez Gormaz, Matias"]
[WhiteFideId "1108832"]
[BlackFideId "3406342"]
[WhiteElo "2138"]
[BlackElo "2341"]
[Result "1/2-1/2"]
[Round "07"]
[TimeControl "180+1"]
[Date "2022.11.16"]
[WhiteClock "0:00:26"]
[BlackClock "0:00:34"]

1. d4 {[%clk 0:02:55]}  d5 {[%clk 0:02:57]} 2. Bg5 {[%clk 0:02:52]}  h6 {[%clk 0:02:53]} 3. Bf4 {[%clk 0:02:51]}  Bf5 {[%clk 0:02:49]} 4. e3 {[%clk 0:02:51]}  e6 {[%clk 0:02:48]} 5. Nf3 {[%clk 0:02:44]}  c5 {[%clk 0:02:44]} 6. Bxb8 {[%clk 0:02:42]}  Qxb8 {[%clk 0:02:42]} 7. Bb5+ {[%clk 0:02:41]}  Kd8 {[%clk 0:02:43]} 8. c4 {[%clk 0:02:30]}  a6 {[%clk 0:02:27]} 9. Ba4 {[%clk 0:02:29]}  b5 {[%clk 0:02:24]} 10. cxb5 {[%clk 0:02:16]}  axb5 {[%clk 0:02:25]} 11. Bc2 {[%clk 0:02:16]}  Bxc2 {[%clk 0:02:21]} 12. Qxc2 {[%clk 0:02:17]}  c4 {[%clk 0:02:19]} 13. O-O {[%clk 0:02:17]}  Bd6 {[%clk 0:02:18]} 14. e4 {[%clk 0:02:15]}  Ne7 {[%clk 0:02:16]} 15. a3 {[%clk 0:01:45]}  Qb7 {[%clk 0:02:15]} 16. Nc3 {[%clk 0:01:42]}  Kd7 {[%clk 0:01:42]} 17. Rfe1 {[%clk 0:01:42]}  b4 {[%clk 0:01:38]} 18. axb4 {[%clk 0:01:38]}  Qxb4 {[%clk 0:01:32]} 19. exd5 {[%clk 0:01:31]}  exd5 {[%clk 0:01:33]} 20. Rxa8 {[%clk 0:01:04]}  Rxa8 {[%clk 0:01:33]} 21. g3 {[%clk 0:00:52]}  Rb8 {[%clk 0:01:19]} 22. Re2 {[%clk 0:00:45]}  Qb3 {[%clk 0:01:16]} 23. Qh7 {[%clk 0:00:41]}  Bb4 {[%clk 0:00:56]} 24. Qxg7 {[%clk 0:00:33]}  Bxc3 {[%clk 0:00:56]} 25. bxc3 {[%clk 0:00:34]}  Qd1+ {[%clk 0:00:55]} 26. Re1 {[%clk 0:00:31]}  Qxf3 {[%clk 0:00:51]} 27. Rxe7+ {[%clk 0:00:31]}  Kxe7 {[%clk 0:00:50]} 28. Qe5+ {[%clk 0:00:31]}  Kd7 {[%clk 0:00:49]} 29. Qxb8 {[%clk 0:00:31]}  Qxc3 {[%clk 0:00:48]} 30. Qb7+ {[%clk 0:00:29]}  Kd6 {[%clk 0:00:41]} 31. Qb6+ {[%clk 0:00:27]}  Kd7 {[%clk 0:00:39]} 32. Qb7+ {[%clk 0:00:26]}  Kd6 {[%clk 0:00:39]} 33. Qb6+ {[%clk 0:00:26]}  Kd7 {[%clk 0:00:34]} 34. Qb7+ {[%clk 0:00:26]} 1/2-1/2


[Site "https://www.chess.com"]